[Event "2nd Serbia Open Masters 2022"]
[Site "Novi Sad"]
[Date "2022.07.01"]
[Round "4.21"]
[White "Ram Aravind L N"]
[Black "Arnaudov, G. Petar"]
[Result "0-1"]
[ECO "C64"]
[WhiteElo "2116"]
[BlackElo "2467"]
[Annotator "TA"]
[PlyCount "120"]
[EventDate "2022.06.28"]
[EventType "swiss"]
[EventCountry "SRB"]
[SourceTitle "playchess.com"]
[Source "ChessBase"]
[SourceQuality "1"]
[TimeControl "40/5400+30:900+30"]

{[%evp 10,120,31,24,34,35,37,33,41,41,27,0,0,0,12,-32,-28,-66,-66,-107,-96,-112,-102,-112,-75,-121,-94,-168,-167,-167,-151,-163,-164,-173,-169,-196,-138,-163,-165,-153,-142,-127,-122,-308,-311,-298,-294,-315,-279,-258,-238,-239,-221,-229,-211,-301,-276,-386,-360,-361,-254,-453,-445,-448,-441,-603,-371,-400,-397,-400,-280,-432,-270,-280,-311,-300,-288,-274,-266,-487,-458,-480,-480,-470,-469,-447,-467,-447,-440,-507,-537,-908,-940,-840,-859,-732,-620,-513,-461,-29966,-29966,-29936,-2308,-29961,-10837,-29979,-29980,-29979,-29980,-29982,-29983,-29981,-1251]} 1. e4 {[%emt 1:31:00]} e5 {[%emt 0:02:16]} 2. Nf3 {[%emt 0:00:00]} Nc6 {[%emt 0:00:06]} 3. Bb5 {[%emt 0:00:00]} a6 {[%emt 0:00:07]} 4. Ba4 {[%emt 0:00:00]} Bc5 {[%emt 0:00:24]} 5. O-O {[%emt 0:00:00]} Nge7 {[%emt 0:00:32]} 6. c3 {[%emt 0:00:00]} Ba7 {[%emt 0:01:55] C64: Ruy Lopez: Classical Defence (3...Bc5) except 4 0-0 Nf6.} 7. d4 {[%emt 0:00:00]} Ng6 {[%emt 0:00:06][%cal Be7g6,Bg6f8,Bf8h7,Bh7g5][%mdl 32]} 8. d5 {[%emt 0:00:00]} Nce7 {[%emt 0:01:39] White is slightly better.} 9. d6 {[%emt 0:00:00]} cxd6 {[%emt 0:00:06] [#]} 10. h4 $146 {[%emt 0:00:00]} ({Predecessor:} 10. Qxd6 Bb8 11. Qd3 O-O 12. c4 b5 13. cxb5 d5 14. exd5 Bf5 15. Qb3 e4 16. Nd4 {1-0 (25) Dervishi,E (2511)-Lodici,L (2545) Montesilvano 2022}) 10... h6 {[%emt 0:06:26]} 11. h5 {[%emt 0:00:00]} Nf8 {[%emt 0:00:04]} 12. Nh4 {[%emt 0:00:00]} Nh7 {[%emt 0:23:36]} 13. Qg4 {[%emt 0:00:00]} Kf8 {[%emt 0:02:16]} 14. c4 {[%emt 0:00:00]} d5 {[%emt 0:04:06]} 15. cxd5 {[%emt 0:00:00]} d6 {[%emt 0:00:07]} 16. Qf3 {[%emt 0:00:00]} Ng5 {[%emt 0:04:06]} 17. Qe2 {[%emt 0:00:00]} (17. Bxg5 hxg5 18. Ng6+ Nxg6 19. hxg6 f6 $19) (17. Qd3 $142) 17... Ng8 $17 {[%emt 0:03:10][%cal Og5h3]} 18. Kh1 {[%emt 0:00:00] [#]} (18. Nf5 $17) 18... Nf6 $1 $19 {[%emt 0:01:56]} 19. Nc3 {[%emt 0:00:00]} Bg4 {[%emt 0:00:38]} 20. f3 {[%emt 0:00:00] [#]} Nxh5 $1 {[%emt 0:14:03]} 21. Kh2 {[%emt 0:00:00] [#] Against Ng3} (21. Ng6+ $2 Kg8 22. Qe1 Nxf3 23. Rxf3 (23. gxf3 $2 Bh3 $19) 23... fxg6 $19) (21. Qe1 Bc8) 21... Bc8 {[%emt 0:13:29]} (21... Nxe4 22. Ng6+ Kg8 23. Qxe4 $16 (23. fxg4 $2 Nhg3 $19)) 22. g3 {[%emt 0:00:00]} Nf6 {[%emt 0:03:40]} (22... b5 $19 23. Bb3 g6) 23. Be3 {[%emt 0:00:00]} Bxe3 {[%emt 0:01:07]} 24. Qxe3 {[%emt 0:00:00]} g6 {[%emt 0:00:39]} 25. Bd1 {[%emt 0:00:00]} Kg7 {[%emt 0:01:58]} 26. Na4 $2 {[%emt 0:00:00] Loses the game.} (26. Be2 $17) 26... b5 {[%emt 0:02:06]} (26... Qd7 27. g4 Qd8 28. Nb6 $17) 27. Nc3 {[%emt 0:00:00]} b4 {[%emt 0:00:05]} (27... Qd7 $2 28. Kg1 $17) 28. Na4 {[%emt 0:00:00]} Bd7 {[%emt 0:00:05]} 29. Nb6 {[%emt 0:00:24]} Rb8 {[%emt 0:00:28]} 30. Nxd7 {[%emt 0:01:36]} Qxd7 {[%emt 0:01:27]} 31. g4 {[%emt 0:01:54]} Qd8 {[%emt 0:00:10]} 32. Kg3 {[%emt 0:01:58]} (32. Rh1 {was called for.}) 32... Nd7 {[%emt 0:01:39] Pair of Knights!} 33. Rc1 {[%emt 0:01:25]} Nc5 {[%emt 0:02:00]} 34. Bc2 {[%emt 0:00:23]} Qe7 {[%emt 0:01:06] aiming for ...h5.} 35. Rf2 $2 {[%emt 0:02:13]} (35. Rh1 {might work better.}) 35... h5 {[%emt 0:02:14]} 36. gxh5 {[%emt 0:01:06]} Rxh5 {[%emt 0:00:09][%cal Og5h3] Hoping for ...Nh3!} 37. Rh1 {[%emt 0:00:23] Prevents Nh3.} Rbh8 {[%emt 0:00:07]} 38. Rfh2 {[%emt 0:00:05]} Qf6 {[%emt 0:02:13]} 39. Bd1 {[%emt 0:02:54]} ({Don't blunder} 39. Nf5+ $2 gxf5 40. exf5 Rxh2 41. Rxh2 Rxh2 42. Kxh2 Qh6+ 43. Kg2 Qh3+ 44. Kf2 Qh2+ 45. Kf1 f6 $19) 39... a5 {[%emt 0:01:54][%cal Oc5e6,Ba6a5,Ba5a4][%mdl 32] White must now prevent ...Nce6!} 40. Be2 {[%emt 0:00:00]} ({Not} 40. Nf5+ $2 gxf5 41. exf5 Rxh2 42. Rxh2 Rxh2 43. Kxh2 Qxf5 $19) (40. Ng2 $142 Rxh2 41. Rxh2) 40... a4 {[%emt 0:00:00] Threatens to win with ...Kf8.} 41. Ng2 {[%emt 0:07:30]} (41. Nf5+ $2 gxf5 42. exf5 Rxh2 43. Rxh2 Rxh2 44. Kxh2 Qxf5 $19) 41... Rxh2 {[%emt 0:03:19] Dancing on a razor blade.} 42. Rxh2 {[%emt 0:00:01]} Rxh2 {[%emt 0:00:07]} 43. Kxh2 {[%emt 0:00:02]} Qd8 {[%emt 0:00:20]} 44. Qd2 $2 {[%emt 0:00:43]} (44. Kg1) 44... Qh8+ {[%emt 0:02:14]} 45. Kg1 {[%emt 0:00:18]} Qh6 {[%emt 0:00:39]} 46. Qe3 {[%emt 0:02:17]} ({But not} 46. Qxb4 Nh3+ 47. Kf1 Qg5) 46... Nh3+ {[%emt 0:03:10]} 47. Kf1 {[%emt 0:00:43]} Nf4 {[%emt 0:00:08]} 48. Nxf4 {[%emt 0:02:39]} Qxf4 {[%emt 0:00:09]} 49. Qxf4 {[%emt 0:03:27]} exf4 {[%emt 0:00:06][%mdl 4096] Endgame KB-KN} 50. a3 {[%emt 0:00:01]} bxa3 {[%emt 0:01:14]} 51. bxa3 {[%emt 0:00:01]} Kf6 {[%emt 0:00:08]} 52. Bb5 {[%emt 0:00:03]} Ke5 {[%emt 0:01:45] And now ...f6 would win.} 53. Be8 {[%emt 0:00:02]} f5 {[%emt 0:00:54]} 54. Bxg6 {[%emt 0:03:56]} (54. exf5 $19 gxf5 55. Ke2) 54... fxe4 {[%emt 0:00:06]} 55. fxe4 {[%emt 0:00:02]} Nxe4 {[%emt 0:00:05]} (55... f3 $142 56. Be8 Kxe4 57. Bb5 Kf4 58. Kg1 Ne4 59. Bxa4 Kg3 60. Kf1 Nd2+ 61. Ke1 Nc4 62. Be8 f2+ 63. Ke2 Kg2 64. Kd3 f1=Q+ 65. Kc3 Ne3 66. Kb4 Nxd5+ 67. Ka5 Qd3 68. Ka4 Qc4+ 69. Ka5 Qb3 70. Bc6 Qxa3+ 71. Ba4 Qb4+ 72. Ka6 Qb6#) 56. Be8 {[%emt 0:00:06]} Nc3 {[%emt 0:00:15] ( -> ...f3)} 57. Bc6 {[%emt 0:00:04]} f3 {[%emt 0:00:27] Black mates.} 58. Kf2 {[%emt 0:00:04]} Kf4 {[%emt 0:00:11]} 59. Be8 {[%emt 0:00:13]} Ne4+ {[%emt 0:00:07]} 60. Kf1 {[%emt 0:00:04]} Ke5 {[%emt 0:15:51] Weighted Error Value: White=0.70/Black=0.23 (precise)} (60... Kg3 $142 61. Bxa4 f2 62. Bc2 Nd2+ 63. Ke2 f1=Q+ 64. Kxd2 Qf3 65. a4 Qxd5+ 66. Kc3 Qc5+ 67. Kb3 d5 68. Bh7 Qc4+ 69. Kb2 Qxa4 70. Kc3 Qc4+ 71. Kb2 Kf3 72. Bg8 Ke2 73. Bxd5 Qxd5 74. Kc2 Qc4+ 75. Kb1 Kd2 76. Ka1 Kc3 77. Kb1 Qb3+ 78. Kc1 Qc2#) 0-1

[Event "2nd Serbia Open Masters 2022"]
[Site "Novi Sad"]
[Date "2022.07.01"]
[Round "4.22"]
[White "Milikow, Yoav"]
[Black "Eren, Ataberk"]
[Result "1/2-1/2"]
[ECO "D32"]
[WhiteElo "2410"]
[BlackElo "2273"]
[Annotator "TA"]
[PlyCount "81"]
[EventDate "2022.06.28"]
[EventType "swiss"]
[EventCountry "SRB"]
[SourceTitle "playchess.com"]
[Source "ChessBase"]
[SourceQuality "1"]
[TimeControl "40/5400+30:900+30"]

{[%evp 12,81,34,40,24,36,32,45,29,14,13,6,14,12,14,9,18,10,18,12,28,17,81,12,30,22,30,28,73,73,89,87,91,86,86,84,85,85,85,86,84,84,85,84,86,86,93,83,97,88,104,88,89,87,86,74,79,66,62,12,9,12,12,10,12,0,0,0,12,13,14,0]} 1. c4 {[%emt 0:00:04]} e6 {[%emt 0:05:48][%cal Be7e6,Be6d5,Bd5d4][%mdl 32]} 2. Nc3 {[%emt 0:00:12]} d5 {[%emt 0:00:09]} 3. d4 {[%emt 0:00:10]} c5 {[%emt 0:00:05]} 4. cxd5 {[%emt 0:00:21]} exd5 {[%emt 0:00:04]} 5. Nf3 {[%emt 0:00:13]} Nc6 {[%emt 0:00:04]} 6. dxc5 {[%emt 0:00:18]} d4 {[%emt 0:00:19]} 7. Na4 {[%emt 0:00:17]} Bxc5 {[%emt 0:00:09][%mdl 64] Decoy. D32: Tarrasch Defence: Sidelines and lines without g3.} 8. Nxc5 {[%emt 0:00:07] Nb3 is the strong threat.} Qa5+ {[%emt 0:00:02]} 9. Qd2 {[%emt 0:00:08]} Qxc5 {[%emt 0:00:06] White is slightly better.} 10. e3 $1 {[%emt 0:00:04][%mdl 4] is recently more successful than 10.a3.} dxe3 {[%emt 0:00:15]} 11. Qxe3+ {[%emt 0:00:05]} Qxe3+ {[%emt 0:00:09]} 12. Bxe3 {[%emt 0:00:02]} Nge7 {[%emt 0:00:10]} 13. Bc4 {[%emt 0:01:11]} O-O {[%emt 0:00:33]} 14. O-O {[%emt 0:01:17]} Bg4 {[%emt 0:10:18]} 15. Ng5 {[%emt 0:13:28] [#]} Bh5 $146 {[%emt 0:10:47]} ({Predecessor:} 15... Bf5 16. f3 h6 17. Ne4 Rfd8 18. Rad1 Ne5 19. Bb3 Bxe4 20. fxe4 Rxd1 21. Rxd1 N7c6 {1-0 (39) Del Rio de Angelis,S (2491)-Ehrke,M (2222) Tegernsee 2019}) 16. Rac1 {[%emt 0:15:21]} Rfd8 {[%emt 0:01:02] [#]} (16... Nf5 $11) 17. f3 {[%emt 0:01:25] White is more active.} (17. g4 $1 $16 {[%cal Rg4h5]} Bg6 18. f4) 17... Nd5 {[%emt 0:02:56]} 18. Bf2 {[%emt 0:02:02]} Bg6 {[%emt 0:23:10]} 19. Rfd1 {[%emt 0:09:55]} Nf4 {[%emt 0:07:24]} 20. Be3 {[%emt 0:04:00]} Nd3 {[%emt 0:13:43] [#]} 21. Nxf7 $1 {[%emt 0:01:12]} Bxf7 {[%emt 0:00:06]} 22. Bxd3 {[%emt 0:01:04] This bishop pair is nice.} Bxa2 {[%emt 0:00:05]} 23. Be4 {[%emt 0:01:19]} Bb3 {[%emt 0:06:58]} 24. Rxd8+ {[%emt 0:00:43]} Rxd8 {[%emt 0:00:19]} 25. Bxc6 {[%emt 0:00:50]} bxc6 {[%emt 0:00:06]} 26. Rxc6 $16 {[%emt 0:00:12][%mdl 4096] Endgame KRB-KRB} a5 {[%emt 0:01:00]} 27. Rc7 {[%emt 0:01:05]} a4 {[%emt 0:01:15]} 28. Kf2 {[%emt 0:00:51]} h6 {[%emt 0:00:26]} 29. Ke2 {[%emt 0:01:42]} Kh7 {[%emt 0:02:54]} 30. Bd2 {[%emt 0:00:47]} Rf8 {[%emt 0:00:13]} 31. Bc3 {[%emt 0:01:08]} Rf7 {[%emt 0:00:01]} 32. Rc5 {[%emt 0:00:36]} g5 {[%emt 0:04:34]} 33. Rc8 {[%emt 0:01:10]} h5 {[%emt 0:01:34]} 34. Rh8+ {[%emt 0:02:36]} Kg6 {[%emt 0:00:02]} 35. Bd2 {[%emt 0:01:27]} (35. Rg8+ $14 Kf5 36. Ra8) 35... Re7+ $11 {[%emt 0:00:47] The position is equal.} 36. Be3 {[%emt 0:03:32][%cal Oh2h4]} Bc4+ {[%emt 0:00:22]} 37. Kf2 {[%emt 0:00:50]} Rb7 {[%emt 0:00:32]} 38. Bc1 {[%emt 0:00:47][%cal Oh2h4]} Re7 {[%emt 0:00:53] And now ...Re2+ would win.} 39. Be3 {[%emt 0:00:11]} Rb7 {[%emt 0:00:04]} 40. Bd4 {[%emt 0:00:00]} Re7 {[%emt 0:00:00]} 41. Be3 {[%emt 0:00:26] Weighted Error Value: White=0.09 (flawless) /Black=0.09 (flawless)} 1/2-1/2

[Event "2nd Serbia Open Masters 2022"]
[Site "Novi Sad"]
[Date "2022.07.01"]
[Round "4.23"]
[White "Sarana, Alexey"]
[Black "Chitlange Sakshi"]
[Result "1-0"]
[ECO "A28"]
[WhiteElo "2675"]
[BlackElo "2216"]
[Annotator "TA"]
[PlyCount "59"]
[EventDate "2022.06.28"]
[EventType "swiss"]
[EventCountry "SRB"]
[SourceTitle "playchess.com"]
[Source "ChessBase"]
[SourceQuality "1"]
[TimeControl "40/5400+30:900+30"]

{[%evp 12,59,0,3,29,25,48,53,56,48,40,39,30,33,41,41,25,22,34,19,120,111,125,126,150,137,137,136,133,131,158,177,163,167,165,96,100,74,160,122,115,108,108,113,112,112,103,77,339,343]} 1. c4 {[%emt 0:01:49]} Nf6 {[%emt 0:00:18]} 2. Nc3 {[%emt 0:00:18]} e5 {[%emt 0:00:32]} 3. e3 {[%emt 0:00:45]} Be7 {[%emt 0:02:42]} 4. Nf3 {[%emt 0:01:00]} Nc6 {[%emt 0:00:52]} 5. a3 {[%emt 0:00:33]} d5 {[%emt 0:01:10]} 6. cxd5 {[%emt 0:01:25]} Nxd5 {[%emt 0:00:06]} 7. Qc2 {[%emt 0:01:35]} Be6 {[%emt 0:09:31] A28: English Opening: Four Knights Variation.} 8. Bb5 {[%emt 0:01:24][%cal Bf1b5,Bb5c6,Bc6b7,Bb7a6,Ba6d3,Bd3c4][%mdl 32]} f6 {[%emt 0:03:02]} 9. d4 {[%emt 0:00:53]} O-O {[%emt 0:10:42] White is slightly better.} 10. O-O {[%emt 0:09:00]} exd4 {[%emt 0:09:27]} 11. Bxc6 {[%emt 0:01:13] [#]} dxc3 $146 {[%emt 0:00:41]} ({Predecessor:} 11... bxc6 12. Nxd4 Bf7 13. Nxc6 Qd7 14. Nxe7+ Qxe7 15. Bd2 Nxc3 16. Bxc3 c5 17. e4 Rfd8 {1-0 (28) Zhigalko,A (2517)-Skatchkov,V (2283) Kazan 2021}) 12. Bxb7 {[%emt 0:00:13] aiming for Rd1.} Rb8 {[%emt 0:03:52]} 13. Ba6 {[%emt 0:00:46]} cxb2 {[%emt 0:04:30]} 14. Bxb2 {[%emt 0:00:35]} c5 {[%emt 0:03:01] Inhibits Nd4.} 15. Bd3 {[%emt 0:00:28]} f5 {[%emt 0:06:43]} (15... g6 $11 {remains equal.}) 16. Be5 $16 {[%emt 0:08:12]} Rb6 {[%emt 0:04:35]} 17. Rfd1 {[%emt 0:01:38] Threatens to win with Bc4.} Qc8 {[%emt 0:06:51]} 18. Bc4 {[%emt 0:05:16]} Nc7 {[%emt 0:12:19]} 19. Bxc7 {[%emt 0:01:42]} Qxc7 {[%emt 0:00:04] [#]} 20. Nd4 $1 {[%emt 0:00:13][%mdl 512]} Bxc4 {[%emt 0:02:48]} (20... Bf7 21. Nxf5) 21. Qxc4+ {[%emt 0:00:06]} Rf7 {[%emt 0:00:05]} 22. Nxf5 $1 {[%emt 0:00:37]} Bf8 {[%emt 0:03:03]} 23. Rd5 {[%emt 0:02:59]} (23. Nh4 $18) 23... Qb7 {[%emt 0:02:37]} 24. Rad1 {[%emt 0:00:58]} Rb1 {[%emt 0:01:33]} (24... Qa6 $142 25. Qc1 g6) 25. Rd8 {[%emt 0:01:24]} Rxd1+ {[%emt 0:03:12]} 26. Rxd1 {[%emt 0:00:57][%cal Bd8d1,Bd1f1,Bf1b1][%mdl 32]} Qb2 {[%emt 0:00:05]} 27. Rf1 {[%emt 0:07:58] Active counter play!} Qxa3 {[%emt 0:01:33] [#]} 28. Rb1 $1 {[%emt 0:00:06] Prevents Qb4. Hoping for Nh4.} Qa5 {[%emt 0:01:58]} 29. e4 {[%emt 0:01:16][%cal Be3e4,Be4e5][%mdl 32] e5 is the strong threat.} Qd2 $2 {[%emt 0:01:13][%mdl 8192]} (29... g6 $16) 30. e5 {[%emt 0:02:10] Weighted Error Value: White=0.07 (flawless) /Black=0.28 (precise)} 1-0

[Event "2nd Serbia Open Masters 2022"]
[Site "Novi Sad"]
[Date "2022.07.01"]
[Round "4.24"]
[White "Moksh Amit Doshi"]
[Black "Demchenko, Anton"]
[Result "0-1"]
[ECO "E92"]
[WhiteElo "2398"]
[BlackElo "2654"]
[Annotator "TA"]
[PlyCount "102"]
[EventDate "2022.06.28"]
[EventType "swiss"]
[EventCountry "SRB"]
[SourceTitle "playchess.com"]
[Source "ChessBase"]
[SourceQuality "1"]
[TimeControl "40/5400+30:900+30"]

{[%evp 24,102,34,27,57,58,56,63,47,60,57,65,70,34,44,21,31,16,23,28,28,14,11,8,4,-25,-37,-39,-28,-62,-60,-47,-46,-87,-43,-52,-52,-51,-51,-51,-51,-193,-195,-210,-203,-200,-213,-196,-197,-248,-248,-257,-253,-225,-247,-247,-219,-369,-249,-259,-253,-394,-352,-436,-439,-435,-410,-442,-439,-414,-387,-473,-474,-668,-663,-679,-675,-662,-654,-568,-559]} 1. d4 {[%emt 0:07:45]} Nf6 {[%emt 0:00:05]} 2. c4 {[%emt 0:00:08]} g6 {[%emt 0:00:05]} 3. Nc3 {[%emt 0:00:07]} Bg7 {[%emt 0:00:13]} 4. e4 {[%emt 0:00:11]} d6 {[%emt 0:01:06]} 5. Nf3 {[%emt 0:00:08]} O-O {[%emt 0:00:24]} 6. Be2 {[%emt 0:00:07]} e5 {[%emt 0:06:10]} 7. dxe5 {[%emt 0:01:08]} dxe5 {[%emt 0:00:04]} 8. Qxd8 {[%emt 0:00:10]} Rxd8 {[%emt 0:00:05]} 9. Bg5 {[%emt 0:00:10]} Nbd7 {[%emt 0:05:57]} 10. O-O-O {[%emt 0:02:21]} Rf8 {[%emt 0:00:14]} 11. Nd5 {[%emt 0:00:51]} c6 {[%emt 0:00:15]} 12. Ne7+ {[%emt 0:01:05]} Kh8 {[%emt 0:00:02]} 13. Be3 {[%emt 0:00:48]} Re8 {[%emt 0:00:51] E92: King's Indian: Classical: 6 Be2 e5: 7 dxe5, 7 Be3 and Petrosian System without 7...Nbd7.} 14. Nxc8 {[%emt 0:00:09]} Rexc8 {[%emt 0:02:31]} 15. g4 {[%emt 0:01:37][%cal Bg2g4,Bg4g5][%mdl 32]} Rc7 {[%emt 0:00:13] White is slightly better.} 16. Nd2 $1 {[%emt 0:02:17]} Bf8 {[%emt 0:25:20]} 17. g5 {[%emt 0:06:37]} Ne8 {[%emt 0:00:06][%cal Bf6e8,Be8d6,Bd6e4,Be4g5,Bg5e6][%mdl 32] [#]} 18. Nb3 $146 {[%emt 0:02:44]} ({Predecessor:} 18. Bg4 Bc5 19. Bxd7 Bxe3 20. fxe3 Rxd7 21. Nf3 Re7 22. Rd3 Nc7 23. Rhd1 Kg7 24. Rd7 {½-½ (53) Van Zyl Rudd,J (2041)-Frolov,A (2389) Budapest 2017}) 18... a5 {[%emt 0:01:45]} 19. Bg4 {[%emt 0:14:28]} a4 $1 {[%emt 0:00:12]} 20. Bxd7 {[%emt 0:10:03]} ({But not} 20. Rxd7 Rxd7 21. Bxd7 axb3 $17) 20... axb3 {[%emt 0:00:06]} 21. axb3 {[%emt 0:00:13] Strongly threatening Bxe8.} Nd6 {[%emt 0:01:48]} 22. Bg4 {[%emt 0:07:25]} Nxe4 {[%emt 0:01:48]} 23. Bb6 {[%emt 0:00:50] And now f3 would win.} Re7 {[%emt 0:00:06]} 24. Rhe1 {[%emt 0:08:46]} Nxg5 {[%emt 0:06:33]} 25. Bd8 {[%emt 0:02:34]} f5 {[%emt 0:03:08]} 26. Be2 {[%emt 0:08:16] [#]} Ne6 $1 {[%emt 0:12:44]} 27. Bxe7 {[%emt 0:01:01]} Bxe7 {[%emt 0:00:01]} 28. Bd3 {[%emt 0:04:55]} Ra5 {[%emt 0:07:30][%mdl 1024] Black has strong compensation.} 29. Kb1 {[%emt 0:01:03]} Bb4 {[%emt 0:04:58]} 30. Rf1 {[%emt 0:02:46]} b6 {[%emt 0:05:30]} 31. Bc2 {[%emt 0:01:11]} Ra7 $1 {[%emt 0:00:10] Against Rd7} 32. Rd3 {[%emt 0:02:11] [#] Loses the game.} (32. f3 $1 $15) 32... e4 $1 $19 {[%emt 0:01:05]} 33. Rdd1 {[%emt 0:01:52]} Kg7 {[%emt 0:00:50]} 34. h4 {[%emt 0:01:18]} Kf6 {[%emt 0:02:04]} 35. Rh1 {[%emt 0:01:18]} Re7 {[%emt 0:03:01]} 36. Rh3 {[%emt 0:01:15]} (36. Rdg1 {keeps fighting.}) 36... Ke5 {[%emt 0:00:48]} 37. Rf1 {[%emt 0:03:30]} Nd4 {[%emt 0:02:15]} 38. Bd1 {[%emt 0:01:24]} Kf4 {[%emt 0:00:53]} 39. Rg1 {[%emt 0:00:59]} Rd7 {[%emt 0:01:14] White must now prevent ...Nf3. Active counter play!} 40. Rhg3 {[%emt 0:00:00]} (40. Kc1 {was worth a try.}) 40... Be7 {[%emt 0:00:00]} 41. Rh1 {[%emt 0:08:50]} c5 {[%emt 0:00:52]} 42. Bc2 {[%emt 0:01:01]} (42. Kc1 $142) 42... Bf6 {[%emt 0:00:50]} 43. Rgh3 {[%emt 0:00:29]} Nf3 {[%emt 0:01:37]} 44. Kc1 {[%emt 0:00:13]} Bd4 {[%emt 0:01:19]} 45. Rf1 {[%emt 0:00:08]} Ra7 {[%emt 0:00:17] aiming for ...Ra1+.} 46. Bb1 {[%emt 0:00:27]} Be5 {[%emt 0:00:21]} 47. Rhh1 {[%emt 0:00:07]} Bf6 {[%emt 0:00:13] Black is clearly winning.} 48. h5 {[%emt 0:00:05]} (48. Kd1 $142) 48... g5 {[%emt 0:00:09][%cal Bg6g5,Bg5g4][%mdl 32]} 49. Rd1 {[%emt 0:00:17]} Bd4 {[%emt 0:00:59]} 50. Rhf1 {[%emt 0:01:19]} h6 {[%emt 0:00:14]} 51. Kc2 {[%emt 0:00:19]} g4 {[%emt 0:00:31] Weighted Error Value: White=0.30/Black=0.06 (flawless)} 0-1

[Event "2nd Serbia Open Masters 2022"]
[Site "Novi Sad"]
[Date "2022.07.01"]
[Round "4.25"]
[White "Piorun, Kacper"]
[Black "Drnovsek, Gal"]
[Result "1-0"]
[ECO "E49"]
[WhiteElo "2635"]
[BlackElo "2398"]
[Annotator "TA"]
[PlyCount "63"]
[EventDate "2022.06.28"]
[EventType "swiss"]
[EventCountry "SRB"]
[SourceTitle "playchess.com"]
[Source "ChessBase"]
[SourceQuality "1"]
[TimeControl "40/5400+30:900+30"]

{[%evp 26,63,32,-14,-2,-13,0,-5,14,-31,0,0,4,-36,0,0,0,4,102,95,112,91,103,72,288,300,282,287,316,317,401,387,389,388,597,568,2730,2663,1779,1626]} 1. d4 {[%emt 0:00:11]} Nf6 {[%emt 0:00:08]} 2. c4 {[%emt 0:00:05]} e6 {[%emt 0:00:07]} 3. Nc3 {[%emt 0:00:07]} Bb4 {[%emt 0:00:28]} 4. e3 {[%emt 0:00:35]} O-O {[%emt 0:01:15]} 5. Bd3 {[%emt 0:00:14]} c5 {[%emt 0:01:03]} 6. Nge2 {[%emt 0:00:15]} d5 {[%emt 0:04:15]} 7. cxd5 {[%emt 0:00:19]} exd5 {[%emt 0:00:56]} 8. a3 {[%emt 0:00:39]} Bxc3+ {[%emt 0:02:33]} 9. bxc3 {[%emt 0:00:16]} b6 {[%emt 0:03:28]} 10. O-O {[%emt 0:00:18]} Ba6 {[%emt 0:02:02]} 11. f3 {[%emt 0:00:06]} Re8 {[%emt 0:03:43]} 12. Ng3 {[%emt 0:00:10]} Bxd3 {[%emt 0:04:28]} 13. Qxd3 {[%emt 0:00:02]} Nc6 {[%emt 0:08:06]} 14. Ra2 {[%emt 0:05:44]} (14. Bb2 $14) 14... Qd7 {[%emt 0:09:10] E49: Nimzo-Indian: Rubinstein: 5 Bd3 d5 6 a3 Bxc3+ 7 bxc3.} 15. Re2 {[%emt 0:00:10]} Rad8 {[%emt 0:06:58]} 16. Bb2 {[%emt 0:00:23]} a5 {[%emt 0:14:00] [#] The position is equal.} 17. a4 $146 {[%emt 0:02:20]} ({Predecessor:} 17. Rd1 c4 18. Qb1 b5 19. e4 dxe4 20. fxe4 b4 21. axb4 axb4 22. Rf2 Ng4 23. Rf3 {½-½ (70) Aditya,M (2438)-Rios Parra,M (2267) Chess.com INT 2021}) 17... cxd4 {[%emt 0:02:03]} 18. cxd4 {[%emt 0:00:06]} Nb4 {[%emt 0:00:38]} 19. Qb1 {[%emt 0:15:51]} Qxa4 {[%emt 0:02:22]} 20. e4 $1 {[%emt 0:00:05][%cal Be3e4,Be4e5][%mdl 32]} Qb3 {[%emt 0:03:56]} 21. e5 {[%emt 0:01:45]} Qc4 {[%emt 0:06:21]} (21... g6 $11 {keeps the balance.}) 22. Rd2 $16 {[%emt 0:05:11][%mdl 1024] White has strong compensation.} Nd7 {[%emt 0:02:49]} 23. f4 {[%emt 0:00:05][%cal Bf3f4,Bf4f5,Bf5f6][%mdl 32]} Nf8 {[%emt 0:02:31]} 24. Qd1 {[%emt 0:08:52]} Re6 $2 {[%emt 0:08:45] [#] This costs Black the game.} (24... Rc8 $16 {might work better.}) 25. f5 $18 {[%emt 0:19:21]} Rh6 {[%emt 0:00:07]} 26. Qf3 {[%emt 0:02:09]} Qc7 {[%emt 0:02:47]} 27. Qg4 {[%emt 0:00:55]} Qd7 {[%emt 0:02:40]} 28. Nh5 {[%emt 0:01:25]} Rxh5 {[%emt 0:01:12]} 29. Qxh5 {[%emt 0:00:02] [#] Strongly threatening f6.} Rc8 {[%emt 0:00:18]} (29... Qe8 {was called for.} 30. Rf3 Kh8) 30. f6 {[%emt 0:01:11] White is clearly winning.} g6 {[%emt 0:00:15]} 31. Qh6 {[%emt 0:00:08][%csl Gf6][%cal Rh6g7]} Ne6 {[%emt 0:00:08] Against Qg7+} 32. Rf3 {[%emt 0:00:11] Weighted Error Value: White=0.11 (very precise) /Black=0.59} 1-0